bitfinex-derivatives/quotes_ETHF0:USTF0_20241017
["timestamp","ask_amount","ask_price","bid_price","bid_amount"]
[1729192733455,1.39,2592.1,2592.0,7.18259257]
[1729192734750,1.39,2592.1,2592.0,8.57259257]
[1729192736141,1.39,2592.1,2592.0,7.18259257]
[1729192736342,1.39,2592.1,2592.0,7.18113704]
[1729192738158,1.39,2592.1,2592.0,8.57113704]
[1729192738553,1.39,2592.1,2592.0,4.27163955]
[1729192738744,5.63344,2592.1,2592.0,2.96554191]
[1729192739056,0.38586,2592.0,2591.9,1.00731599]
[1729192739257,2.99486,2592.0,2591.9,1.00731599]
[1729192740361,0.38587,2591.9,2591.7,1.89668317]
[1729192740563,0.38587,2591.9,2591.8,2.96649799]
[1729192740853,1.39,2591.9,2591.8,4.74238799]
[1729192741058,1.39,2591.9,2591.8,3.23159482]
[1729192741262,1.39,2591.9,2591.8,5.66012563]
[1729192742260,1.77587,2591.9,2591.8,2.25529482]
[1729192743858,1.39,2591.9,2591.8,2.25483088]
[1729192744168,1.39,2591.9,2591.8,5.65966169]
[1729192744464,1.39,2591.9,2591.8,8.57042732]
[1729192744653,1.39,2591.9,2591.8,5.65975631]
[1729192744852,1.39,2591.9,2591.8,8.57044084]
[1729192745146,1.39,2591.9,2591.8,6.55561003]
[1729192746254,1.39,2591.9,2591.8,9.07547375]
[1729192749060,1.39,2592.0,2591.9,0.38587]
[1729192749262,1.39,2592.0,2591.9,9.47023274]
[1729192749666,1.39,2592.0,2591.9,8.08023274]
[1729192749853,1.39,2592.0,2591.9,6.95036902]
[1729192750058,1.39,2592.0,2591.9,9.47023274]
[1729192750367,1.39,2592.0,2591.9,8.08023274]
[1729192750667,1.77586,2592.0,2591.9,5.56036902]
[1729192750864,1.77586,2592.0,2591.9,7.57629094]
[1729192751059,3.16586,2592.0,2591.9,6.38412094]
[1729192751259,1.77586,2592.0,2591.9,3.35421934]
[1729192752067,1.77586,2592.0,2591.9,1.84193634]
[1729192754270,1.77586,2592.0,2591.9,2.96783781]
[1729192754465,1.77586,2592.0,2591.9,2.96783655]
[1729192758066,1.77586,2592.0,2591.9,1.45606634]
[1729192758263,1.77586,2592.0,2591.9,2.9679594]
[1729192758567,1.77586,2592.0,2591.9,2.96830687]
[1729192760255,1.77586,2592.0,2591.8,1.3939919]
[1729192760256,1.39,2592.0,2591.8,1.3939919]
[1729192760461,2.18687,2591.9,2591.8,1.3939919]
[1729192763572,1.77587,2591.9,2591.8,2.85073384]
[1729192763758,1.77587,2591.9,2591.8,2.66401194]
[1729192763962,1.77587,2591.9,2591.8,3.67216633]
[1729192764162,1.77587,2591.9,2591.8,2.66401194]
[1729192764576,1.77587,2591.9,2591.8,4.175905]
[1729192764761,0.42,2592.2,2592.1,0.38584]
[1729192764959,1.77584,2592.2,2592.1,0.38584]
[1729192765164,1.77584,2592.2,2592.1,1.39398218]
[1729192765369,1.77584,2592.2,2592.1,0.38584]
[1729192766673,1.39,2592.2,2592.1,1.39398218]
[1729192766871,1.77583,2592.2,2592.1,1.39398218]
[1729192767471,1.77583,2592.2,2592.1,3.85842136]
[1729192767773,1.77583,2592.2,2592.1,3.85842988]
[1729192768862,1.39,2592.2,2592.1,3.85842988]
[1729192769068,1.39,2592.2,2592.1,6.77232233]
[1729192770666,1.77583,2592.2,2592.1,1.84250796]
[1729192771078,1.77583,2592.2,2592.1,3.85842988]
[1729192772275,1.77583,2592.2,2592.1,1.84250796]
[1729192772478,1.77583,2592.2,2592.1,3.85899485]
[1729192772776,1.77583,2592.2,2592.1,1.84307293]
[1729192774180,1.77583,2592.2,2592.1,3.35570373]
[1729192774370,1.77583,2592.2,2592.1,1.84307293]
[1729192774675,1.77583,2592.2,2592.1,3.3557907]
[1729192777173,1.77583,2592.2,2592.1,3.35553056]
[1729192777681,1.77583,2592.2,2592.1,3.35535909]
[1729192779780,1.77583,2592.2,2592.1,1.84281279]
[1729192780182,1.77583,2592.2,2592.1,3.35547753]
[1729192780993,1.77583,2592.2,2592.1,3.35549526]
[1729192781279,0.54153643,2592.3,2592.1,1.45697279]
[1729192781474,0.38582,2592.3,2592.2,4.17047271]
[1729192781878,0.92734643,2592.4,2592.3,0.38581]
[1729192782078,0.92734643,2592.4,2592.3,3.35369963]
[1729192782278,0.92734643,2592.4,2592.3,0.78141]
[1729192782681,2.31734643,2592.4,2592.3,0.78141]
[1729192783185,1.77581,2592.4,2592.3,0.78141]
[1729192783383,0.38581,2592.4,2592.3,0.78141]
[1729192783583,1.77581,2592.4,2592.3,0.78141]
[1729192790387,1.77581,2592.4,2592.3,1.84980909]
[1729192790585,1.77581,2592.4,2592.3,1.78773713]
[1729192790788,1.77581,2592.4,2592.3,3.24195688]
[1729192791289,1.77581,2592.4,2592.3,3.24186053]
[1729192791983,1.77581,2592.4,2592.3,3.24181336]
[1729192792186,0.38581,2592.4,2592.3,3.24181336]
[1729192792382,1.77581,2592.4,2592.3,3.24181336]
[1729192792585,1.77581,2592.4,2592.3,3.24193222]
[1729192793388,1.77581,2592.4,2592.3,1.78768996]
[1729192795195,1.77581,2592.4,2592.3,1.40187996]
[1729192798990,1.77581,2592.4,2592.3,0.3956]
[1729192800586,0.38584,2592.1,2592.0,0.38584]
[1729192800793,1.77584,2592.1,2592.0,0.38584]
[1729192801896,1.77584,2592.1,2592.0,0.80994]
[1729192802595,1.77584,2592.1,2592.0,1.81621996]
[1729192802986,0.38584,2592.1,2592.0,1.81621996]
[1729192803187,0.59725484,2593.2,2593.1,0.38568]
[1729192803385,1.77568,2593.2,2593.0,1.39]
[1729192803585,1.77568,2593.2,2593.1,0.3964]
[1729192803586,0.38568,2593.2,2593.1,0.3964]
[1729192803790,0.38571,2593.0,2592.9,0.4261]
[1729192803991,0.38574,2592.8,2592.7,1.39133627]
[1729192804189,1.77574,2592.8,2592.7,1.40199627]
[1729192804496,1.77574,2592.8,2592.7,1.00559627]
[1729192805100,5.63254,2592.8,2592.7,1.00559627]
[1729192805594,5.63254,2592.8,2592.4,1.7864]
[1729192805595,0.38578,2592.5,2592.4,0.3964]
[1729192805800,1.77578,2592.5,2592.4,0.3964]
[1729192809394,1.9904331,2592.5,2592.4,0.3964]
[1729192810397,1.9904331,2592.5,2592.4,0.7822]
[1729192810594,1.9904331,2592.5,2592.4,0.3964]
[1729192812397,1.9904331,2592.5,2592.4,1.84917606]
[1729192812592,1.9904331,2592.5,2592.4,3.24032518]
[1729192812899,1.9904331,2592.5,2592.4,2.85452518]
[1729192813200,1.9904331,2592.5,2592.4,0.3964]
[1729192815003,0.54124658,2592.6,2592.4,0.7822]
[1729192815205,1.39,2592.5,2592.4,0.3964]
[1729192815506,1.39,2592.5,2592.4,0.7822]
[1729192817002,1.77578,2592.5,2592.4,0.7822]
[1729192819403,0.38578,2592.6,2592.5,0.38578]
[1729192819603,1.77578,2592.6,2592.5,0.38578]
[1729192821102,1.39,2592.6,2592.5,0.38578]
[1729192821303,1.77577,2592.6,2592.5,0.38578]
[1729192821703,1.77577,2592.6,2592.5,1.77578]
[1729192821704,1.39,2592.6,2592.5,1.77578]
[1729192821906,1.39,2592.6,2592.5,0.38578]
[1729192822606,1.39,2592.6,2592.5,3.84725384]
[1729192824805,1.39,2592.6,2592.5,5.23725384]
[1729192825111,1.39,2592.6,2592.5,8.13689569]
[1729192825507,1.39,2592.6,2592.5,5.23725384]
[1729192825707,1.39,2592.6,2592.5,5.62985384]
[1729192826906,1.39,2592.6,2592.5,8.52962343]
[1729192827112,1.39,2592.6,2592.5,5.62985384]
[1729192827710,1.39,2592.6,2592.5,6.03475384]
[1729192828509,1.39,2592.6,2592.5,2.57328]
[1729192829198,1.77577,2592.6,2592.5,1.18328]
[1729192830710,1.39,2592.6,2592.4,0.3964]
[1729192830920,1.77578,2592.5,2592.4,0.7822]
[1729192831410,1.77578,2592.5,2592.4,0.3964]
[1729192832007,1.77578,2592.5,2592.4,0.7822]
[1729192832307,0.54107225,2592.6,2592.4,1.7864]
[1729192832510,0.38577,2592.6,2592.5,1.77577]
[1729192832914,1.77577,2592.6,2592.5,1.77577]
[1729192833819,1.77577,2592.6,2592.5,0.38577]
[1729192836715,1.77577,2592.6,2592.5,3.34981917]
[1729192837111,0.38577,2592.6,2592.5,5.24570073]
[1729192839024,0.38577,2592.6,2592.5,8.16589288]
[1729192839228,0.38577,2592.6,2592.5,5.24570073]
[1729192840015,1.77577,2592.6,2592.5,5.24570073]
[1729192840820,1.77577,2592.6,2592.5,3.23500248]
[1729192841123,1.77575,2592.7,2592.6,0.38577]
[1729192841320,1.77575,2592.7,2592.6,4.16199858]
[1729192842018,0.38575,2592.7,2592.6,5.55199858]
[1729192842219,0.8159,2593.1,2592.6,7.51623248]
[1729192842420,0.8159,2593.1,2593.0,1.39066433]
[1729192842421,1.77571,2593.1,2593.0,1.39066433]
[1729192842927,1.77571,2593.1,2593.0,1.79546433]
[1729192843124,1.77571,2593.1,2593.0,3.25640032]
[1729192843328,1.77571,2593.1,2593.0,5.14888748]
[1729192843625,1.77571,2593.1,2593.0,0.79049]
[1729192850928,1.77571,2593.1,2593.0,0.4048]
[1729192851219,1.77571,2593.1,2593.0,0.79051]
[1729192851627,1.77571,2593.1,2593.0,1.79511198]
[1729192851829,1.77571,2593.1,2593.0,3.25610109]
[1729192852541,1.77571,2593.1,2593.0,1.79511198]
[1729192853128,1.77571,2593.1,2593.0,3.65108956]
[1729192853529,1.77571,2593.1,2593.0,3.58021198]
[1729192853738,1.77571,2593.1,2593.0,3.99781198]
[1729192854034,0.38571,2593.1,2593.0,3.99781198]
[1729192854220,1.77571,2593.1,2593.0,3.99781198]
[1729192856028,1.77571,2593.1,2593.0,2.22210198]
[1729192856326,0.38572,2592.9,2592.8,1.89320149]
[1729192856635,0.38572,2592.9,2592.8,5.14839995]
[1729192857540,0.38572,2592.9,2592.8,4.76265995]
[1729192857838,0.38572,2592.9,2592.8,5.14839995]
[1729192858229,0.38572,2592.9,2592.8,3.68810149]
[1729192858427,0.38572,2592.9,2592.8,5.14782863]
[1729192858639,0.81372,2592.9,2592.8,5.14782863]
[1729192859432,0.81372,2592.9,2592.8,5.54092863]
[1729192861731,0.81372,2592.9,2592.8,5.54131459]
[1729192863229,0.23467315,2592.9,2592.8,5.54131459]
[1729192864334,0.62039315,2592.9,2592.8,5.15557459]
[1729192864538,0.62039315,2592.9,2592.8,3.76557459]
[1729192865232,0.62039315,2592.9,2592.8,5.15557459]
[1729192866127,0.62039315,2592.9,2592.8,5.15300098]
[1729192866327,2.01039315,2592.9,2592.8,3.35810098]
[1729192866531,2.01039315,2592.9,2592.8,1.45753949]
[1729192866732,1.62467315,2592.9,2592.8,1.39]
[1729192866936,2.01039315,2592.9,2592.8,1.39]
[1729192868233,0.62039315,2592.9,2592.8,1.77574]
[1729192868837,0.38572,2592.9,2592.8,1.77574]
[1729192872239,0.92669312,2593.0,2592.9,0.38572]
[1729192872435,0.38572,2592.9,2592.8,1.77572]
[1729192873941,0.38572,2592.9,2592.8,3.23454356]
[1729192875230,0.38572,2593.0,2592.9,0.38571]
[1729192875430,0.38572,2593.0,2592.9,4.74133524]
[1729192875638,0.38572,2593.0,2592.9,3.23428657]
[1729192876033,3.59351,2593.1,2593.0,0.38571]
[1729192876237,3.59351,2593.1,2593.0,3.35035538]
[1729192876945,3.59351,2593.1,2593.0,4.35464538]
[1729192877239,3.59351,2593.1,2593.0,3.23428657]
[1729192877441,3.59351,2593.1,2593.0,5.24498482]
[1729192877442,3.2078,2593.1,2593.0,5.24498482]
[1729192877630,3.59349,2593.1,2593.0,8.16274086]
[1729192877830,3.59349,2593.1,2593.0,3.23428657]
[1729192878026,3.59349,2593.1,2593.0,1.45857657]
[1729192878027,4.98349,2593.1,2593.0,1.45857657]
[1729192878234,9.24299,2593.1,2593.0,1.45857657]
[1729192878440,0.38575,2592.7,2592.5,1.22379194]
[1729192878644,0.38575,2592.7,2592.2,0.38581]
[1729192878645,0.38581,2592.3,2592.2,4.28918282]
[1729192878942,0.38581,2592.3,2592.2,4.69664568]
[1729192879235,1.39,2592.4,2592.3,0.38581]
[1729192879236,1.77581,2592.4,2592.3,0.38581]
[1729192879440,1.77581,2592.4,2592.3,1.77581]
[1729192880035,0.38581,2592.3,2592.2,0.38582]
[1729192880238,0.38581,2592.3,2592.2,1.77582]
[1729192880631,1.77581,2592.4,2592.3,0.38581]
[1729192880831,1.77581,2592.4,2592.3,1.77581]
[1729192882239,0.38579,2592.5,2592.4,0.3858]
[1729192882538,4.7708,2593.0,2592.4,1.39]
[1729192882741,3.59351,2593.0,2592.9,1.77572]
[1729192883432,1.7757,2593.1,2593.0,0.38571]
[1729192883631,0.3857,2593.1,2593.0,2.19891]
[1729192884236,1.7757,2593.1,2593.0,2.19891]
[1729192884431,1.7757,2593.1,2593.0,1.8132]
[1729192884636,1.7757,2593.1,2593.0,2.19891]
[1729192886045,0.38573,2592.9,2592.8,0.38572]
[1729192886234,0.38573,2592.9,2592.8,1.77572]
[1729192887039,1.39,2592.9,2592.5,1.785]
[1729192887237,1.77577,2592.6,2592.5,1.39]
[1729192888035,0.38577,2592.6,2592.5,1.77576]
[1729192888337,0.38576,2592.7,2592.6,0.38575]
[1729192888537,0.38576,2592.7,2592.6,2.16567]
[1729192888739,0.38576,2592.7,2592.6,1.7799]
[1729192888939,0.38576,2592.7,2592.6,2.16567]
[1729192889143,0.38575,2592.8,2592.7,0.38574]
[1729192889346,5.77689526,2593.0,2592.9,0.38571]
[1729192889347,0.38573,2593.0,2592.9,0.38571]
[1729192889647,0.38573,2593.0,2592.9,1.77571]
[1729192891938,0.38573,2593.0,2592.6,1.35432]
[1729192892236,1.77575,2592.7,2592.6,1.7799]
[1729192892446,1.77575,2592.7,2592.6,2.16567]
[1729192892837,0.38575,2592.7,2592.6,2.16567]
[1729192893655,0.8096,2593.1,2592.6,1.7799]
[1729192893946,0.38573,2593.0,2592.9,1.77571]
[1729192894647,0.3857,2593.2,2593.1,0.38569]
[1729192897548,3.59347,2593.3,2593.2,0.38568]
[1729192897748,3.59347,2593.3,2593.2,2.19538]
[1729192898440,3.59347,2593.3,2593.2,3.64098799]
[1729192898642,4.98347,2593.3,2593.2,3.64098799]
[1729192899951,3.59347,2593.3,2593.2,3.64098799]
[1729192900844,4.98347,2593.3,2593.2,2.25098799]
[1729192901248,4.98347,2593.3,2593.2,2.2514629]
[1729192901445,4.98347,2593.3,2593.2,2.25140993]
[1729192902438,3.59347,2593.3,2593.2,3.64140993]
[1729192902842,4.98347,2593.3,2593.2,3.64140993]
[1729192903148,4.98347,2593.3,2593.2,3.64114951]
[1729192904057,4.98347,2593.3,2593.2,2.19538]
[1729192904254,1.77567,2593.3,2593.2,2.19538]
[1729192907847,0.38567,2593.3,2593.2,2.19538]
[1729192911144,0.38567,2593.3,2593.2,3.64173509]
[1729192911562,0.38566,2593.4,2593.3,0.38566]
[1729192911755,1.17543695,2593.6,2593.3,0.38566]
[1729192911756,0.38563,2593.6,2593.5,0.38562]
[1729192911958,1.77563,2593.6,2593.5,1.77562]
[1729192916565,1.77563,2593.6,2593.5,1.39]
[1729192916866,1.77563,2593.6,2593.2,1.38388]
[1729192916867,5.246,2593.6,2593.2,1.8097]
[1729192917163,4.98346,2593.4,2593.3,0.38566]
[1729192917369,4.98346,2593.4,2593.3,1.77566]
[1729192917564,5.40146,2593.4,2593.3,1.77566]
[1729192918770,4.01146,2593.4,2593.3,1.77566]
[1729192919376,0.80366,2593.4,2593.3,1.77566]
[1729192920662,3.2078,2593.8,2593.3,3.74416]
[1729192920966,5.39159,2593.8,2593.7,1.7756]
[1729192921169,3.2078,2593.8,2593.7,1.7756]
[1729192921360,0.38558,2593.9,2593.8,0.38559]
[1729192921558,1.39,2594.1,2593.9,0.38556]
[1729192921559,0.38557,2594.0,2593.9,0.38556]
[1729192921767,0.38557,2594.0,2593.9,2.18366]
[1729192922468,1.77557,2594.0,2593.9,2.18366]
[1729192922975,1.77557,2594.0,2593.9,0.79366]
[1729192923474,1.77557,2594.0,2593.9,2.18366]
[1729192924270,0.38557,2593.9,2593.8,0.38559]
[1729192924477,2.17877,2593.9,2593.8,0.38559]
[1729192924676,0.78877,2593.9,2593.8,1.77559]
[1729192925568,2.17877,2593.9,2593.8,0.38559]
[1729192926465,0.78877,2593.9,2593.8,1.77559]
[1729192927377,0.38557,2593.9,2593.8,1.77559]
[1729192928962,0.38557,2593.9,2593.6,0.4268]
[1729192928963,0.3856,2593.8,2593.7,1.39]
[1729192929164,2.204,2593.8,2593.7,1.39]
[1729192930169,0.814,2593.8,2593.7,1.39]
[1729192930872,2.204,2593.8,2593.7,1.39]
[1729192931077,0.3856,2593.7,2593.6,1.39]
[1729192931273,0.7955,2593.7,2593.6,1.39]
[1729192931471,0.38562,2593.6,2593.5,1.39]
[1729192931770,3.74406,2593.6,2593.2,4.146]
[1729192931966,3.6177,2593.7,2592.9,3.5935]
[1729192931967,0.38571,2593.0,2592.9,3.5935]
[1729192932163,0.38569,2593.1,2593.0,1.39]
[1729192932773,0.38571,2593.0,2592.9,1.39]
[1729192933073,0.38571,2593.0,2592.8,0.4109]
[1729192933074,0.38572,2592.9,2592.8,0.79664]
[1729192933473,0.38572,2592.9,2592.8,0.4109]
[1729192933881,0.38572,2592.9,2592.8,1.8009]
[1729192934065,0.38574,2592.8,2592.7,0.38575]
[1729192934270,0.38576,2592.7,2592.6,0.38576]
[1729192934869,0.38575,2592.8,2592.7,0.38574]
[1729192937570,0.38573,2592.9,2592.8,0.38573]
[1729192938274,3.2078,2593.4,2592.8,6.8668]
[1729192938576,3.59346,2593.4,2593.3,0.38566]
[1729192939075,3.59346,2593.4,2593.3,0.78756]
[1729192939378,3.59345,2593.4,2593.3,0.78756]
[1729192939778,0.38564,2593.5,2593.3,0.4019]
[1729192940079,0.4194,2593.8,2593.4,0.3918]
[1729192940271,0.38561,2593.7,2593.6,0.38561]
[1729192942676,0.4194,2593.8,2593.4,2.30569649]
[1729192942980,0.38563,2593.5,2593.4,0.77744]
[1729192944073,0.38563,2593.5,2593.4,2.22429286]
[1729192946073,3.39563,2593.5,2593.4,1.44685286]
[1729192946375,0.38568,2593.2,2593.1,1.90209649]
[1729192946676,0.38568,2593.2,2593.1,0.393]
[1729192946876,0.38567,2593.3,2593.2,0.38566]
[1729192947183,0.38567,2593.3,2593.2,3.34171443]
[1729192947774,0.21273216,2593.7,2593.2,13.77612487]
[1729192947973,0.38564,2593.5,2593.4,0.38563]
[1729192948173,0.38564,2593.5,2593.4,1.83246838]
[1729192948379,0.38564,2593.5,2593.4,3.34155066]
[1729192948872,4.23211659,2593.9,2593.4,2.95592066]
[1729192949074,0.38562,2593.7,2593.6,0.38561]
[1729192949273,0.38562,2593.7,2593.6,0.78221]
[1729192955984,1.17945518,2594.0,2593.9,0.38556]
[1729192955985,0.38557,2594.0,2593.9,0.38556]
[1729192956287,0.38556,2594.1,2594.0,0.38554]
[1729192956991,0.38557,2594.0,2593.9,0.38556]
[1729192957584,3.2078,2594.2,2594.0,0.38554]
[1729192957585,0.38556,2594.1,2594.0,0.38554]
[1729192963386,4.17164,2594.2,2593.7,3.6371]
[1729192963583,4.17164,2594.2,2593.8,0.38557]
[1729192963584,0.38559,2593.9,2593.8,0.38557]
[1729192964183,0.38556,2594.1,2594.0,0.38554]
[1729192966581,0.38556,2594.0,2593.9,0.79136]
[1729192967186,0.38555,2594.1,2594.0,0.38554]
[1729192967780,0.38555,2594.1,2594.0,4.24074]
[1729192968299,3.2078,2594.2,2594.0,12.8652]
[1729192968588,0.38553,2594.2,2594.1,0.38554]
[1729192969491,0.38554,2594.1,2593.9,0.4058]
[1729192969795,0.38556,2594.0,2593.9,0.4058]
[1729192969995,0.38556,2594.0,2593.9,0.79137]
[1729192971584,0.38556,2594.0,2593.9,0.4058]
[1729192972490,0.38556,2594.0,2593.9,0.79137]
[1729192974290,0.38559,2593.8,2593.4,3.2078]
[1729192974481,0.38559,2593.8,2593.5,0.77813]
[1729192974482,0.38563,2593.6,2593.5,0.77813]
[1729192975896,0.38563,2593.6,2593.5,0.3925]
[1729192977003,0.38563,2593.6,2593.5,0.77813]
[1729192977295,0.38563,2593.6,2593.5,0.3925]
[1729192977598,0.38563,2593.6,2593.5,0.77813]
[1729192978683,0.38563,2593.6,2593.5,1.39694211]
[1729192978886,0.38563,2593.6,2593.5,0.77813]
[1729192979801,0.38563,2593.6,2593.5,1.78257211]
[1729192980098,0.38563,2593.6,2593.5,0.3925]
[1729192980401,0.38563,2593.6,2593.5,0.77813]
[1729192980596,0.38563,2593.6,2593.5,0.3925]
[1729192981290,0.38563,2593.6,2593.5,1.39694211]
[1729192981899,0.38563,2593.6,2593.5,1.00444211]
[1729192982099,1.77563,2593.6,2593.5,2.39444211]
[1729192982302,1.77563,2593.6,2593.5,1.39]
[1729192983294,1.77563,2593.6,2593.5,1.77563]
[1729192983295,0.38563,2593.6,2593.5,1.77563]
[1729192983497,0.38563,2593.6,2593.5,2.78007211]
[1729192983700,0.38563,2593.6,2593.5,2.39444211]
[1729192983901,0.38563,2593.6,2593.5,2.78007211]
[1729192984096,0.4216,2593.7,2593.5,2.39444211]
[1729192984305,0.38562,2593.7,2593.6,4.65750066]
[1729192984592,0.38562,2593.7,2593.6,5.55154083]
[1729192984797,1.20718,2593.9,2593.8,0.38559]
[1729192984992,3.59337,2594.0,2593.9,0.38557]
[1729192985211,0.38556,2594.1,2594.0,0.38555]
[1729192985508,0.38556,2594.1,2594.0,5.13398939]
[1729192985704,0.38552,2594.3,2594.2,0.38553]
[1729192985894,0.77599,2594.5,2594.2,4.01624628]
[1729192986100,0.38548,2594.6,2594.5,0.38548]
[1729192986501,0.4092,2594.8,2594.5,0.798]
[1729192986807,0.4092,2594.8,2594.6,0.38546]
[1729192986808,0.38546,2594.7,2594.6,0.38546]
[1729192986993,0.4092,2594.8,2594.5,0.798]
[1729192986994,0.38547,2594.6,2594.5,1.18347]
[1729192987705,0.38547,2594.7,2594.5,0.798]
[1729192987909,0.38547,2594.7,2594.6,0.38547]
[1729192988105,0.38547,2594.6,2594.5,1.18348]
[1729192988604,1.15980396,2594.8,2594.5,0.798]
[1729192988912,0.38547,2594.6,2594.5,1.18348]
[1729192989305,1.15980396,2594.8,2594.6,0.38546]
[1729192989306,0.38546,2594.7,2594.6,0.38546]
[1729192990216,0.62007659,2594.8,2594.5,0.798]
[1729192990217,0.38545,2594.8,2594.7,0.38545]
[1729192997705,3.41677318,2595.0,2594.7,0.38545]
[1729192998010,0.38543,2594.9,2594.8,0.38542]
[1729192998914,0.38543,2594.9,2594.7,3.398]
[1729192998915,3.41930423,2595.3,2595.0,0.38541]
[1729192999214,0.38538,2595.2,2595.1,0.38538]
[1729192999812,3.59316,2595.3,2595.2,0.38538]
[1729193000006,0.38536,2595.4,2595.3,0.38536]
[1729193000210,4.0054,2595.8,2595.3,0.38536]
[1729193000418,4.0054,2595.8,2595.4,0.3969]
[1729193000605,0.38534,2595.5,2595.4,0.3969]
[1729193001812,0.38534,2595.5,2595.4,0.78225]
[1729193002014,0.38533,2595.6,2595.5,0.38533]
[1729193002215,0.38533,2595.6,2595.5,0.77523]
[1729193002415,0.38533,2595.6,2595.5,0.3899]
[1729193003312,0.38533,2595.6,2595.5,0.77524]
[1729193003513,0.38533,2595.6,2595.5,0.3899]
[1729193004013,0.38533,2595.6,2595.5,0.77524]
[1729193004521,0.38533,2595.6,2595.5,0.3899]
[1729193005713,0.38533,2595.6,2595.5,0.77524]
[1729193010110,0.38533,2595.6,2595.5,0.3899]
[1729193010311,3.2078,2595.7,2595.4,0.3969]
[1729193010518,0.38534,2595.5,2595.4,0.3969]
[1729193010713,0.38534,2595.5,2595.4,0.78225]
[1729193011617,0.38534,2595.5,2595.4,0.3969]
[1729193012320,0.38534,2595.5,2595.4,0.78225]
[1729193012620,0.38534,2595.5,2595.4,0.3969]
[1729193013312,0.96332,2595.6,2595.2,1.2245]
[1729193013619,0.96332,2595.6,2595.2,1.60987]
[1729193013620,0.38536,2595.3,2595.2,1.60987]
[1729193014323,0.38541,2595.1,2595.0,0.38539]
[1729193015917,0.38541,2595.1,2595.0,1.77539]
[1729193017022,0.3879,2595.2,2595.0,1.77539]
[1729193017023,0.77329,2595.2,2595.1,0.38539]
[1729193017214,0.77329,2595.2,2595.1,1.77539]
[1729193017614,0.38539,2595.2,2595.1,1.77539]
[1729193018818,0.38539,2595.2,2595.1,1.39]
[1729193019224,0.38539,2595.2,2595.1,1.77539]
[1729193022223,0.38539,2595.2,2595.1,1.39]
[1729193022433,0.38538,2595.2,2595.1,1.77539]
[1729193024427,0.38542,2595.0,2594.9,0.38541]
[1729193024630,0.38542,2595.0,2594.9,1.77541]
[1729193024922,0.38541,2595.1,2595.0,0.38539]
[1729193025119,0.38541,2595.1,2595.0,1.77539]
[1729193026620,0.38539,2595.2,2595.1,0.38538]
[1729193026820,0.38539,2595.2,2595.1,2.58598]
[1729193027218,0.38539,2595.1,2595.0,1.77541]
[1729193030929,0.38539,2595.2,2595.1,0.38538]
[1729193031229,0.38539,2595.2,2595.1,1.77538]
[1729193035229,0.38539,2595.2,2595.1,0.38538]
[1729193038227,1.39,2595.3,2595.0,1.39016903]
[1729193038228,0.38539,2595.1,2595.0,1.39016903]
[1729193038429,0.38539,2595.1,2595.0,0.38539]
[1729193038640,0.38539,2595.1,2595.0,1.39016903]
[1729193039732,1.39,2595.3,2595.0,2.39477903]
[1729193039937,0.38539,2595.2,2595.1,0.38538]
[1729193040341,0.38539,2595.1,2595.0,1.39017903]
[1729193040640,2.18479,2595.1,2595.0,0.38541]
[1729193040940,0.38539,2595.1,2595.0,1.77541]
[1729193041135,0.92527673,2595.1,2595.0,1.77541]
[1729193041437,0.38539,2595.1,2595.0,2.78018903]
[1729193042830,0.38539,2595.1,2595.0,4.24057029]
[1729193043227,0.38539,2595.1,2595.0,4.24281655]
[1729193043831,0.38539,2595.1,2595.0,2.85064716]
[1729193044031,0.38539,2595.1,2595.0,2.78222388]
[1729193044336,0.38539,2595.1,2595.0,4.24312889]
[1729193044639,0.38539,2595.1,2595.0,3.23624908]
[1729193044827,0.53988673,2595.3,2595.0,4.35800763]
[1729193045036,0.38536,2595.4,2595.3,0.38536]
[1729193045255,0.38535,2595.4,2595.3,3.18957258]
[1729193045539,0.38535,2595.4,2595.3,5.15056939]
[1729193046143,0.38535,2595.5,2595.4,0.38534]
[1729193047434,1.77535,2595.5,2595.4,0.38534]
[1729193051249,0.38534,2595.5,2595.4,1.77534]
[1729193051946,1.77534,2595.5,2595.4,1.77534]
[1729193052146,1.39,2595.5,2595.1,0.3902]
[1729193052345,1.77538,2595.3,2595.2,1.77537]
[1729193052942,0.38538,2595.3,2595.2,1.77537]
[1729193054438,0.38538,2595.3,2595.2,4.76016597]
[1729193055447,0.92558609,2595.4,2595.3,0.38536]
[1729193055647,0.38535,2595.4,2595.3,3.2525608]
[1729193055845,0.38535,2595.4,2595.3,4.76190817]
[1729193057839,0.38535,2595.4,2595.3,4.76179406]
[1729193058146,1.77535,2595.5,2595.4,0.38535]
[1729193058342,1.77535,2595.5,2595.4,2.86860548]
[1729193059448,1.77535,2595.5,2595.4,2.48325548]
[1729193059641,1.77535,2595.5,2595.4,1.00616879]
[1729193060550,1.77535,2595.5,2595.4,1.39151879]
[1729193061551,1.77535,2595.5,2595.4,0.38535]
[1729193062052,0.38538,2595.2,2595.1,2.16559]
[1729193062857,0.77978,2595.2,2595.1,2.16559]
[1729193064252,0.77978,2595.2,2595.0,0.4052]
[1729193064253,1.7844,2595.2,2595.0,0.38539]
[1729193064557,0.3854,2595.1,2595.0,0.38539]
[1729193064744,0.3854,2595.1,2595.0,1.77539]
[1729193065655,0.38541,2595.0,2594.9,0.79211]
[1729193065953,0.38541,2595.0,2594.9,2.18211]
[1729193066258,5.2436,2595.0,2594.5,4.21396879]
[1729193066448,1.77545,2594.8,2594.7,1.39]
[1729193066651,1.77545,2594.8,2594.7,1.77545]
[1729193066847,0.80495,2594.8,2594.7,1.77545]
[1729193069453,0.80495,2594.8,2594.7,4.76193681]
[1729193069950,0.4195,2594.8,2594.7,4.76193681]
[1729193070258,3.2078,2595.1,2595.0,0.38541]